bitfinex/quotes_ETHUSD_20250519
["timestamp","ask_amount","ask_price","bid_price","bid_amount"]
[1747666226283,8.481,2447.8,2447.4,4.0858055]
[1747666226489,8.481,2447.8,2447.4,4.08582844]
[1747666226650,14.75656073,2448.0,2447.1,0.942678]
[1747666226651,10.67146163,2448.0,2447.2,0.55]
[1747666226859,10.67146163,2448.0,2447.6,4.08555887]
[1747666226860,8.479,2447.9,2447.6,4.08555887]
[1747666227186,10.67146163,2448.0,2447.4,0.7992]
[1747666227353,8.474,2447.9,2447.6,4.08547304]
[1747666227789,8.474,2447.9,2447.7,4.08544799]
[1747666227988,26.054,2448.3,2447.9,4.08513419]
[1747666228212,8.466,2448.1,2447.5,0.55]
[1747666228392,16.873,2448.3,2447.9,4.08505094]
[1747666228558,8.401,2448.3,2448.0,4.08485333]
[1747666228758,8.401,2448.3,2447.5,0.55]
[1747666228759,8.401,2448.3,2448.1,4.08468127]
[1747666228961,0.34118645,2448.2,2448.0,4.08487869]
[1747666229473,0.34118645,2448.2,2447.9,4.08504806]
[1747666229675,0.34118645,2448.2,2448.1,4.08480045]
[1747666230609,0.34118645,2448.2,2448.0,4.08488164]
[1747666230894,0.34118645,2448.2,2447.7,8.0]
[1747666231096,0.34118645,2448.2,2447.9,4.0850241]
[1747666231296,0.34118645,2448.2,2447.9,4.08505214]
[1747666231499,8.472,2448.4,2447.9,4.08505214]
[1747666231874,12.55632248,2448.4,2447.9,4.08505214]
[1747666232076,8.472,2448.4,2447.8,0.8]
[1747666232297,8.472,2448.4,2448.2,4.08451663]
[1747666232606,0.8154,2449.1,2448.1,8.0]
[1747666232768,8.462,2449.0,2448.4,0.55]
[1747666233097,12.54530064,2449.0,2448.5,4.08402195]
[1747666233285,8.462,2449.0,2448.6,4.08392744]
[1747666233485,8.462,2449.0,2448.7,4.08379426]
[1747666233685,8.4,2449.3,2448.5,0.7806]
[1747666233886,4.20557895,2450.1,2449.2,4.08281735]
[1747666233887,0.7652,2449.7,2449.2,4.08281735]
[1747666234107,8.399,2449.5,2449.0,4.08313489]
[1747666234402,12.48148418,2449.5,2448.7,8.55]
[1747666234698,4.0827472,2449.4,2448.7,4.08379956]
[1747666234870,4.0827472,2449.4,2448.9,4.08345359]
[1747666235397,12.48155043,2449.5,2449.0,4.08328622]
[1747666235766,4.08263825,2449.4,2448.9,4.08337405]
[1747666235968,4.08263887,2449.4,2448.9,4.08337468]
[1747666236297,12.52163807,2449.4,2448.9,4.08337387]
[1747666236596,4.08285073,2449.3,2448.8,4.08357602]
[1747666236897,12.5216546,2449.4,2448.9,4.08339192]
[1747666237098,8.439,2449.4,2448.6,8.0]
[1747666237398,4.08279916,2449.3,2448.6,8.0]
[1747666237699,4.08290425,2449.3,2448.8,4.08354549]
[1747666237900,4.08290425,2449.3,2448.7,4.08377283]
[1747666238067,4.08289631,2449.3,2448.8,4.08356069]
[1747666238267,8.439,2449.4,2448.5,0.7806]
[1747666238464,4.08404655,2448.6,2448.1,4.08465902]
[1747666238796,12.48142723,2449.6,2448.0,8.397]
[1747666238797,4.08426644,2448.5,2448.0,12.48188089]
[1747666239097,4.08452488,2448.3,2447.9,0.8145]
[1747666239298,4.08452488,2448.3,2447.8,4.8852033]
[1747666239473,8.421,2448.5,2447.8,0.8]
[1747666239679,8.421,2448.5,2448.3,4.08432041]
[1747666239922,8.421,2448.5,2447.9,0.29956531]
[1747666240069,8.421,2448.5,2448.1,12.08463496]
[1747666240271,8.421,2448.5,2448.2,4.08446859]
[1747666240617,8.421,2448.5,2448.3,4.08445898]
[1747666240988,8.421,2448.5,2448.4,4.08429995]
[1747666241883,8.409,2449.1,2448.4,4.98014141]
[1747666242084,8.409,2449.1,2448.8,4.08351214]
[1747666242279,8.409,2449.1,2448.9,4.08345129]
[1747666242686,8.409,2449.1,2449.0,4.0832993]
[1747666242907,8.396,2449.3,2449.1,4.0830608]
[1747666242908,16.81,2449.3,2449.1,4.0830608]
[1747666243205,16.81,2449.3,2448.9,0.7591]
[1747666243413,16.81,2449.3,2449.0,4.08322581]
[1747666243593,4.89384867,2449.6,2449.1,12.08312106]
[1747666243594,4.89383412,2449.6,2449.1,12.08312106]
[1747666243796,0.8115,2449.6,2449.2,8.0]
[1747666244030,8.407,2449.6,2449.4,8.0]
[1747666244173,8.407,2449.6,2449.2,8.0]
[1747666244569,8.396,2449.7,2449.0,8.0]
[1747666244730,16.802,2449.7,2449.2,8.0]
[1747666244895,16.802,2449.7,2449.6,8.0]
[1747666245077,16.802,2449.7,2449.4,12.08253861]
[1747666245279,0.7917,2449.9,2449.5,8.0]
[1747666245578,16.81,2450.1,2449.9,4.08172814]
[1747666245888,8.406,2450.1,2450.0,8.0]
[1747666246091,8.406,2450.1,2450.0,12.08163265]
[1747666246601,8.405,2450.7,2450.0,1.61634135]
[1747666246802,16.803,2450.6,2450.3,8.0]
[1747666247312,8.405,2451.0,2450.5,4.08076044]
[1747666247610,4.08059129,2450.7,2450.1,0.7791]
[1747666247826,4.08073072,2450.6,2450.2,8.0]
[1747666248425,4.0804668,2450.7,2450.2,1.61630406]
[1747666248584,8.397,2450.8,2450.2,5.69760077]
[1747666248781,12.48314403,2450.9,2450.4,4.08085008]
[1747666248979,8.395,2450.8,2450.5,12.08076464]
[1747666249182,4.08056731,2450.7,2450.2,5.69747428]
[1747666249493,4.08056731,2450.7,2450.3,8.97789326]
[1747666249804,4.08069269,2450.6,2450.3,8.97789326]
[1747666250005,0.04106815,2450.5,2450.1,8.0]
[1747666250205,9.2324,2450.4,2449.5,0.8233]
[1747666250409,4.08165604,2450.0,2449.5,4.08232506]
[1747666250610,4.08194062,2449.9,2449.6,8.0]
[1747666250820,4.08180782,2449.9,2449.4,4.08261034]
[1747666251287,4.08160673,2450.1,2449.2,0.8233]
[1747666251288,12.47616499,2450.3,2449.2,0.8233]
[1747666251482,4.08207822,2449.8,2449.3,4.08272274]
[1747666251710,4.08207822,2449.8,2449.4,0.49060227]
[1747666251711,4.08216867,2449.7,2449.4,0.49060227]
[1747666251916,8.394,2449.8,2449.4,12.57321078]
[1747666252126,8.394,2449.8,2449.4,4.57316257]
[1747666252514,12.47599857,2449.8,2449.4,0.49060227]
[1747666252831,12.47599857,2449.8,2449.4,8.49060227]
[1747666253128,4.08216266,2449.7,2449.3,8.0]
[1747666253344,4.08241107,2449.6,2449.2,4.08294906]
[1747666253531,4.08220714,2449.7,2449.2,4.08294906]
[1747666253739,4.08220714,2449.7,2449.3,8.0]
[1747666253894,13.24269763,2449.8,2449.1,0.87591]
[1747666253895,4.08245354,2449.6,2449.1,0.87591]
[1747666254238,4.08222354,2449.7,2449.2,4.08293949]
[1747666254397,4.08222354,2449.7,2449.2,12.08293949]
[1747666254731,13.24274967,2449.8,2449.3,4.08264157]
[1747666254938,13.24277273,2449.8,2449.3,4.08266715]
[1747666255236,4.08213453,2449.7,2449.4,8.0]
[1747666255431,4.0821325,2449.7,2449.2,5.78715953]
[1747666255635,9.1607,2449.8,2449.4,8.0]
[1747666255811,9.1607,2449.8,2449.4,12.08251296]
[1747666256008,4.08228449,2449.7,2449.3,8.0]
[1747666256213,4.08249247,2449.5,2449.0,12.08319063]
[1747666256407,4.0821325,2449.7,2449.2,8.0]
[1747666256408,4.08221359,2449.7,2449.2,8.0]
[1747666256621,13.24276262,2449.8,2449.2,4.08294702]
[1747666256826,0.8048,2450.1,2449.4,4.08263248]
[1747666257156,12.47470329,2450.0,2449.6,4.08229057]
[1747666257522,8.393,2449.9,2449.5,4.08237396]
[1747666257950,9.2068,2450.1,2449.5,4.08236232]
[1747666258124,21.71215962,2450.3,2449.8,4.08180334]
[1747666258457,16.795,2450.4,2449.8,4.08180486]
[1747666258618,4.08143374,2450.2,2449.2,8.0]
[1747666258820,4.08137187,2450.2,2449.7,4.08209853]
[1747666259226,0.7535,2450.3,2449.7,0.81643908]
[1747666259556,4.83465054,2450.3,2449.8,4.08187427]
[1747666259744,8.393,2450.2,2449.8,4.08189046]
[1747666260059,4.88550103,2451.5,2449.9,9.723]
[1747666260260,0.84726815,2451.4,2450.0,3.43951553]
[1747666260426,4.08071029,2450.6,2450.3,8.0]
[1747666260621,4.08090109,2450.5,2450.1,8.0]
[1747666260848,4.08077616,2450.6,2450.1,12.08146215]
[1747666261439,4.08063331,2450.6,2449.9,8.771]
[1747666261764,4.08079983,2450.5,2450.0,0.12748831]
[1747666261931,4.08146606,2450.1,2450.0,0.12748831]
[1747666262129,4.08190338,2449.9,2449.3,4.08270896]
[1747666262367,9.1725,2450.1,2449.0,0.30848289]
[1747666262681,13.25402446,2450.1,2449.6,4.08229886]
[1747666262968,12.51965845,2450.6,2449.7,4.0821325]
[1747666263136,12.51965845,2450.6,2450.1,4.08145188]
[1747666263351,8.439,2450.6,2449.9,0.55]
[1747666263530,8.439,2450.6,2450.3,4.08112853]
[1747666263963,0.7748,2450.8,2450.3,0.76525479]
[1747666264166,4.8632121,2451.1,2450.6,4.08060718]
[1747666264326,0.7833,2451.1,2450.8,4.08028305]
[1747666264671,8.402,2451.2,2450.8,4.08020671]
[1747666264830,4.3782394,2452.0,2451.0,4.07988039]
[1747666265032,0.7833,2451.6,2450.7,0.6447]
[1747666265230,4.07949548,2451.3,2450.7,0.6447]
[1747666265450,4.86103167,2452.4,2450.8,0.55]
[1747666265651,4.07912206,2451.6,2451.1,8.0]
[1747666265959,4.0791063,2451.6,2451.1,4.07980072]
[1747666266129,4.0774817,2452.5,2451.1,4.0798009]
[1747666266334,4.85670451,2452.3,2451.4,8.0]
[1747666266529,0.7789,2452.3,2451.3,8.0]
[1747666266870,1.14604079,2453.0,2452.0,4.0782184]
[1747666267069,4.07794181,2452.3,2451.8,8.0]
[1747666267272,4.07794181,2452.3,2451.6,8.0]
[1747666267273,4.07823066,2452.1,2451.6,8.0]
[1747666267569,20.95666394,2452.4,2451.4,8.0]
[1747666267781,4.07835358,2452.0,2451.6,8.0]
[1747666267950,4.07806853,2452.2,2451.4,4.07914127]
[1747666268150,4.0781371,2452.1,2451.6,4.07896718]
[1747666268474,4.0781371,2452.1,2451.6,4.07893067]
[1747666269065,20.95671861,2452.4,2451.4,0.8177]
[1747666269269,4.07829167,2452.1,2451.6,8.0]
[1747666269445,4.07829167,2452.1,2451.5,4.07913473]
[1747666269446,4.0783979,2452.0,2451.4,12.89694548]
[1747666269632,4.07830107,2452.1,2451.6,8.0]
[1747666269971,4.07824382,2452.1,2451.4,12.89695155]
[1747666270138,4.078781,2451.8,2451.6,8.0]
[1747666270482,4.07875093,2451.8,2451.3,12.07944321]
[1747666270642,8.398,2451.9,2451.1,0.828]
[1747666270849,4.07876008,2451.8,2451.2,4.07955047]
[1747666271045,16.852,2451.9,2451.1,0.828]
[1747666271266,16.852,2451.9,2450.9,0.16874376]
[1747666271574,16.852,2451.9,2451.0,0.12743116]
[1747666271769,0.8082,2452.1,2451.0,0.12743116]
[1747666271947,16.862,2452.0,2451.0,0.12743116]
[1747666272145,0.8125,2452.5,2451.4,8.55]
[1747666272353,0.8125,2452.5,2451.5,1.40215034]
[1747666273166,0.8125,2452.5,2451.7,0.8203]
[1747666273337,0.8125,2452.5,2451.8,0.12743116]
[1747666273732,0.8125,2452.5,2451.7,0.8203]
[1747666274273,0.21246975,2453.2,2451.8,0.12738963]
[1747666274456,8.398,2453.4,2452.2,0.55]
[1747666274847,0.8185,2453.5,2452.2,0.85819781]
[1747666275166,17.038,2453.4,2452.2,0.85819781]
[1747666275369,17.035,2453.3,2452.4,0.55]
[1747666275570,0.8185,2453.5,2452.4,0.55]
[1747666275743,8.518,2453.4,2452.3,0.12735282]
[1747666275950,8.51,2453.3,2452.3,0.55]
[1747666276157,0.8185,2453.5,2452.3,0.55]
[1747666276477,17.022,2453.2,2452.4,0.12735378]
[1747666277069,17.022,2453.2,2452.1,0.8203]
[1747666277070,0.81646815,2453.1,2452.1,0.8203]
[1747666277265,17.65806815,2453.0,2451.6,0.7574]
[1747666277443,17.617,2453.0,2451.8,0.12355108]
[1747666277648,0.8147,2452.8,2451.8,0.12355108]
[1747666277853,17.07406815,2452.7,2451.8,0.12355108]
[1747666278083,17.03,2452.6,2451.8,0.12355108]
[1747666278440,0.04106815,2452.5,2451.8,0.12355108]
[1747666278641,0.7502,2452.4,2451.8,0.12355108]
[1747666278843,0.8181,2452.2,2451.8,0.12355108]
[1747666279076,17.615,2452.1,2451.8,0.12355108]
[1747666279278,17.04,2452.0,2451.8,0.12355108]
[1747666280303,17.04,2452.0,2450.8,0.7778]
[1747666281012,0.7555,2451.8,2450.8,0.7778]
[1747666281360,17.615,2452.1,2450.8,0.7778]
[1747666281574,8.518,2452.0,2450.8,0.7778]
[1747666281760,8.517,2451.9,2450.8,0.7778]
[1747666284222,0.816,2451.8,2450.8,0.7778]
[1747666284762,0.04106815,2451.7,2450.4,0.87825108]
[1747666285122,0.55,2451.6,2450.4,0.12355108]
[1747666285342,8.0,2451.2,2450.4,0.12355108]
[1747666285505,26.8902,2451.1,2450.4,0.12355108]
[1747666285705,8.518,2451.0,2450.4,0.12355108]
[1747666286028,8.04106815,2450.9,2450.4,0.12355108]
[1747666286228,8.0,2450.9,2450.4,0.12355108]
[1747666286617,8.0,2450.9,2449.6,0.7565]
[1747666286824,18.3752,2451.1,2449.7,0.04081745]
[1747666287032,25.064,2451.0,2449.6,0.7565]
[1747666288257,17.059,2450.9,2449.6,8.7565]
[1747666288626,17.059,2450.9,2449.6,0.7565]
[1747666289765,9.99,2450.8,2449.7,0.59081722]
[1747666290060,27.045,2450.8,2449.8,0.93473172]
[1747666290274,17.055,2450.8,2449.8,0.93473172]
[1747666290410,17.055,2450.8,2449.9,0.7766]
[1747666290811,8.529,2450.7,2449.9,0.7766]
[1747666291265,8.529,2450.7,2449.9,1.00273317]
[1747666291422,8.529,2450.7,2449.9,0.7766]
[1747666293251,0.7797,2450.5,2449.3,0.8167]
[1747666293716,0.04106815,2450.4,2449.3,0.8167]
[1747666293918,9.071,2450.3,2449.3,0.8167]
[1747666294118,8.0,2450.1,2449.3,0.8167]
[1747666294449,0.8152,2450.0,2449.1,0.12355108]
[1747666294818,17.034,2449.9,2449.1,0.12355108]
[1747666295013,8.04106815,2449.8,2449.1,0.12355108]
[1747666295249,8.0,2449.8,2449.1,0.12355108]
[1747666295745,8.04106815,2449.8,2449.1,0.12355108]
[1747666296128,0.8309,2449.6,2449.1,0.12355108]
[1747666296349,0.8309,2449.6,2448.9,0.16874376]
[1747666296350,0.55,2449.5,2448.3,0.7985]
[1747666296758,17.055,2449.4,2448.3,0.7985]
[1747666296959,17.626,2449.3,2448.3,0.7985]
[1747666297114,4.08372776,2448.8,2448.0,0.87415108]
[1747666297319,4.08480045,2448.1,2448.0,0.12355108]
[1747666297541,17.059,2448.1,2448.0,0.12355108]
[1747666297743,4.08454749,2448.3,2448.0,0.12355108]
[1747666297928,4.08480045,2448.1,2448.0,0.12355108]
[1747666298718,4.1258686,2448.1,2448.0,0.12355108]
[1747666298917,4.08480045,2448.1,2448.0,0.12355108]
[1747666299358,21.14780045,2448.1,2448.0,0.12355108]
[1747666299662,4.08519501,2447.9,2447.3,4.08613486]
[1747666299874,4.08530177,2447.8,2447.3,4.08602815]
[1747666300017,4.08498819,2448.0,2447.3,4.08602815]
[1747666300018,17.059,2447.7,2447.3,4.98178386]
[1747666300352,17.059,2447.7,2447.3,4.98186384]
[1747666300731,17.059,2447.7,2447.3,0.89575571]
[1747666300944,17.059,2447.7,2447.4,4.08596456]
[1747666301143,17.059,2447.7,2447.3,4.98187973]
[1747666301467,8.525,2447.8,2447.6,4.0856261]
[1747666301667,17.047,2447.7,2447.6,4.0856261]
[1747666301843,17.047,2447.7,2447.4,4.66263946]
[1747666302038,17.047,2447.7,2447.4,4.08580506]
[1747666302246,17.047,2447.7,2447.5,4.08570128]
[1747666302843,17.047,2447.7,2447.2,0.7851]
[1747666303262,4.08571236,2447.6,2447.2,0.7851]
[1747666303452,4.08571478,2447.6,2447.2,0.7851]
[1747666303649,4.08553764,2447.7,2447.2,0.7851]
[1747666303836,17.045,2447.6,2447.2,0.7851]
[1747666304174,17.67606815,2447.5,2446.5,0.8215]
[1747666304468,4.08693191,2446.9,2446.3,4.08768294]
[1747666304643,21.14306623,2446.8,2446.3,4.08777829]
[1747666304834,21.14306623,2446.8,2446.1,0.94505108]
[1747666304835,8.526,2446.7,2446.2,4.08786943]
[1747666305034,12.61323008,2446.7,2446.1,5.03314838]
[1747666305273,8.526,2446.7,2446.3,4.08778257]
[1747666306068,8.526,2446.7,2446.1,0.94505108]
[1747666306249,12.61326967,2446.7,2446.1,4.90956512]
[1747666306448,12.61326967,2446.7,2446.2,4.08796539]
[1747666306648,8.526,2446.7,2446.2,4.08796539]
[1747666307068,12.61316515,2446.7,2446.1,4.90955137]
[1747666307247,8.526,2446.7,2446.2,4.08789903]
[1747666307450,0.30924835,2447.2,2446.3,4.08768883]
[1747666307651,4.08684614,2446.9,2446.3,4.57866831]
[1747666307876,4.08684614,2446.9,2446.5,4.0874632]
[1747666308081,4.08684614,2446.9,2446.4,4.08756002]
[1747666308580,4.08666796,2447.0,2446.5,4.08743665]
[1747666308581,17.041,2446.8,2446.5,4.08743665]
[1747666309077,4.08681905,2446.9,2446.3,4.57865843]
[1747666309435,4.08713216,2446.8,2446.1,0.8215]
[1747666309782,17.032,2446.7,2446.4,4.08747336]
[1747666310081,17.029,2446.6,2446.1,0.8215]
[1747666310285,8.531,2446.5,2446.3,4.08771405]
[1747666311170,17.038,2446.5,2446.4,4.08763897]
[1747666313251,4.08688897,2446.9,2446.8,4.08682714]
[1747666313252,8.532,2446.9,2446.8,4.08682714]
[1747666313515,0.7984,2447.7,2447.0,4.08662863]
[1747666313799,8.532,2447.2,2446.9,4.08671978]
[1747666313956,8.532,2447.2,2446.6,4.08720775]
[1747666314160,12.61841813,2447.2,2446.7,4.08700708]
[1747666314360,8.532,2447.2,2446.5,0.775]
[1747666314696,17.029,2447.2,2447.0,4.08659722]
[1747666314856,8.532,2447.2,2447.1,4.08646969]
[1747666315052,17.635,2447.5,2447.1,4.8591114]
[1747666315255,8.532,2447.4,2447.2,4.0862126]
[1747666315557,17.026,2447.4,2447.1,0.7727]
[1747666315758,17.026,2447.4,2447.1,4.85915339]
[1747666316058,17.026,2447.4,2447.1,0.7727]
[1747666316292,17.026,2447.4,2447.1,4.85915093]
[1747666316479,17.026,2447.4,2447.1,0.7727]
[1747666316793,8.532,2447.4,2447.3,4.08613574]
[1747666317002,17.635,2447.5,2447.2,4.08621331]
[1747666317171,17.635,2447.5,2447.1,0.7727]
[1747666317172,17.635,2447.5,2447.4,4.08596878]
[1747666317369,0.7921,2448.3,2447.9,4.08507167]
[1747666317597,21.10253686,2448.3,2447.8,4.08518218]
[1747666318295,17.018,2448.3,2447.9,4.08503895]
[1747666318466,17.018,2448.3,2448.0,4.084928]
[1747666318795,17.016,2448.3,2448.1,4.08471948]
[1747666318956,17.016,2448.3,2448.2,4.0846336]
[1747666320295,17.016,2448.3,2448.0,4.08489727]
[1747666320595,17.016,2448.3,2448.1,4.08472708]
[1747666320797,4.08473433,2448.2,2447.7,0.7942]
[1747666321013,17.016,2448.3,2447.5,4.08580183]
[1747666321320,0.8067,2448.4,2447.8,4.0851969]
[1747666321472,9.99,2448.7,2448.1,0.7711]
[1747666321473,8.531,2448.7,2448.1,0.7711]
[1747666321678,8.503,2448.6,2448.3,4.08434281]
[1747666322430,8.503,2448.6,2448.1,0.7711]
[1747666322580,12.58705384,2448.6,2448.1,4.85586043]
[1747666322892,8.503,2448.6,2448.3,4.08445841]
[1747666323077,8.503,2448.6,2448.2,4.08454521]
[1747666323280,8.531,2448.7,2448.3,4.08442986]
[1747666323482,17.027,2448.7,2448.3,4.08436186]
[1747666323722,17.027,2448.7,2448.2,4.08463152]
[1747666323900,17.027,2448.7,2448.2,1.28557315]
[1747666324079,17.027,2448.7,2448.6,4.08396634]
[1747666324406,26.136,2448.8,2448.7,4.08379956]
[1747666324608,8.53,2448.9,2448.6,4.08385323]
[1747666324918,8.53,2448.9,2448.2,9.28557315]
[1747666325212,8.53,2448.9,2448.3,1.42538649]
[1747666325419,4.08368752,2448.8,2448.2,8.0]
[1747666325585,8.53,2448.9,2448.5,4.0840353]
[1747666325792,8.53,2448.9,2448.6,4.0839341]
[1747666326300,12.61354359,2448.9,2448.4,4.08424799]
[1747666326501,8.53,2448.9,2448.1,0.89465108]
[1747666326701,4.08406409,2448.6,2448.1,0.12355108]
[1747666326904,12.57020722,2448.5,2448.2,0.12758804]
[1747666327211,8.486,2448.5,2448.2,0.12758804]
[1747666327412,8.486,2448.5,2448.3,4.08440786]
[1747666327616,0.8259,2449.1,2448.3,1.2509547]
[1747666327781,17.017,2449.0,2448.5,4.08401114]
[1747666327982,17.017,2449.0,2448.6,4.08393789]
[1747666328178,17.017,2449.0,2448.3,5.45895827]
[1747666328504,17.017,2449.0,2448.3,0.12355108]
[1747666328705,4.08374124,2448.8,2448.3,4.20789827]
[1747666329020,4.08374124,2448.8,2448.4,4.08419698]
[1747666329021,8.501,2448.8,2448.4,4.08419698]
[1747666329322,12.58469214,2448.8,2448.3,0.12355108]
[1747666329619,4.08399141,2448.6,2448.3,0.12355108]
[1747666329826,4.08386579,2448.7,2448.3,0.12355108]
[1747666330324,4.08408913,2448.6,2448.3,0.12355108]
[1747666330512,8.501,2448.8,2448.3,0.12355108]
[1747666330712,4.08429995,2448.4,2448.3,0.12355108]
[1747666331017,12.61329995,2448.4,2448.3,0.12355108]
[1747666331537,9.99,2448.7,2448.4,4.08416124]
[1747666331733,9.99,2448.7,2448.0,0.7857]
[1747666331884,9.99,2448.7,2448.3,4.08437482]
[1747666332783,8.503,2448.6,2448.4,4.08420351]
[1747666333013,10.8159,2449.1,2448.1,4.57187731]
[1747666333014,8.502,2448.8,2448.1,4.57187731]
[1747666333203,8.502,2448.8,2448.2,8.12757518]
[1747666333496,0.7519,2449.4,2448.5,0.7711]
[1747666333728,12.59855233,2449.5,2449.0,4.08320643]
[1747666333934,8.516,2449.5,2449.1,4.0830574]
[1747666334109,12.59850687,2449.5,2449.0,4.0832993]
[1747666334511,4.08273976,2449.4,2448.9,4.08341856]
[1747666334697,4.08273976,2449.4,2448.9,4.08338937]
[1747666334698,4.08263248,2449.4,2448.9,4.08338937]
[1747666334900,12.59855985,2449.5,2449.0,4.08328432]
[1747666335309,8.516,2449.5,2449.1,4.08312586]
[1747666335504,8.516,2449.5,2449.2,4.08288389]
[1747666336032,8.501,2449.4,2449.1,4.08306987]
[1747666336242,8.498,2449.4,2449.2,4.08291506]
[1747666336413,12.61120317,2449.7,2449.2,4.08291506]
[1747666336608,8.493,2449.6,2449.2,4.08291506]
[1747666336913,0.7766,2450.0,2449.4,4.08263248]
[1747666337217,12.57889549,2449.9,2449.4,4.08250273]
[1747666337729,4.0819955,2449.8,2449.4,4.08260408]
[1747666337899,8.497,2449.9,2449.5,4.08241987]
[1747666338308,8.497,2449.9,2449.6,4.87337254]
[1747666338730,8.501,2450.0,2449.6,4.87337254]
[1747666338928,8.482,2449.9,2449.7,4.08212384]
[1747666339094,8.482,2449.9,2449.6,0.7911]
[1747666339296,8.482,2449.9,2449.6,4.8733733]
[1747666339493,4.0820228,2449.8,2449.6,0.7911]
[1747666339701,4.08242392,2449.6,2449.3,0.7911]
[1747666340036,8.482,2449.9,2449.3,0.7911]
[1747666340238,0.7624,2450.9,2449.8,1.3411]
[1747666340399,17.009,2450.8,2449.9,4.08179925]
[1747666340735,17.009,2450.8,2449.8,0.7911]
[1747666340736,4.08077043,2450.6,2450.1,4.08131873]
[1747666341033,8.507,2450.6,2450.3,4.08109764]
[1747666341212,8.507,2450.6,2450.3,4.08104622]
[1747666341732,8.501,2450.7,2450.3,4.08104622]
[1747666342029,8.498,2450.7,2450.3,4.08104622]
[1747666342210,8.498,2450.7,2450.4,4.08091413]
[1747666342411,8.495,2450.7,2450.3,4.84220025]
[1747666342614,8.495,2450.7,2450.4,4.08096637]
[1747666343339,8.495,2450.7,2450.5,4.08070536]
[1747666343643,0.8171,2451.5,2450.9,4.08013382]
[1747666343810,0.8171,2451.5,2450.9,12.08005426]
[1747666343811,16.989,2451.4,2450.9,12.08005426]
[1747666344007,4.08008751,2451.0,2450.8,0.7938]
[1747666344207,4.08008751,2451.0,2450.5,0.7934]
[1747666344208,0.45998913,2451.0,2450.5,0.7934]
[1747666344412,8.496,2450.9,2450.5,0.7934]
[1747666344598,8.496,2450.9,2450.5,4.87406064]
[1747666344799,8.496,2450.9,2450.6,4.08054727]
[1747666344999,8.494,2451.1,2450.7,4.08037656]
[1747666345203,8.494,2451.1,2450.6,0.89547295]
[1747666345396,4.07955597,2451.3,2450.7,4.08037528]
[1747666345397,12.57070746,2451.2,2450.7,4.08037528]
[1747666346013,4.07988845,2451.1,2450.6,4.08060444]
[1747666346232,8.491,2451.2,2450.6,8.0]
[1747666346433,4.08004378,2451.0,2450.6,4.08062924]
[1747666346632,12.57070317,2451.2,2450.5,8.7934]
[1747666346633,4.08020468,2450.9,2450.5,8.7934]
[1747666346806,4.08007883,2451.0,2450.5,4.87419555]
[1747666347135,4.08007883,2451.0,2450.5,12.87419555]
[1747666347500,4.08013869,2450.9,2450.5,8.7934]
[1747666347707,8.491,2451.2,2450.5,8.7934]
[1747666347906,8.491,2451.2,2450.4,4.08087555]
[1747666347907,4.08042762,2450.8,2450.4,8.0]
[1747666348501,4.08058571,2450.7,2450.2,5.19491854]
[1747666348732,4.08058571,2450.7,2450.2,8.8055]
[1747666348940,4.08020985,2450.9,2450.3,4.08112949]
[1747666349238,4.08030031,2450.8,2450.3,4.08112949]
[1747666349535,4.08020331,2450.9,2450.4,4.08095858]
[1747666349747,4.08020331,2450.9,2450.3,4.08104426]
[1747666349748,4.08013382,2450.9,2450.3,4.08104426]
[1747666349941,4.08041391,2450.8,2450.3,4.081122]
[1747666350132,8.46,2450.7,2450.3,4.081122]
[1747666350439,8.454,2450.7,2450.3,4.0810345]
[1747666350624,12.53446906,2450.7,2450.3,4.0810345]
[1747666350940,8.454,2450.7,2450.3,4.0810345]
[1747666351652,14.06928685,2451.5,2450.5,4.08072345]
[1747666351852,8.441,2451.2,2450.2,8.8055]
[1747666352057,4.08006399,2451.0,2450.5,4.08078863]
[1747666352217,4.0798009,2451.1,2450.5,4.08078863]
[1747666352218,12.5198009,2451.1,2450.5,4.08068696]
[1747666352418,8.44,2451.1,2450.6,4.08051442]
[1747666352621,8.435,2451.1,2450.8,0.8103]
[1747666352852,4.08003918,2451.0,2450.8,0.8103]
[1747666353432,8.435,2451.1,2450.5,0.8103]
[1747666353633,19.2486,2451.3,2450.5,0.8103]
[1747666353834,31.75613199,2451.3,2450.7,4.0803788]
[1747666354061,19.2486,2451.3,2450.8,4.08028363]
[1747666354234,8.497,2451.3,2451.0,4.07985248]
[1747666354557,8.497,2451.3,2451.0,4.07980289]
[1747666354958,8.497,2451.3,2451.0,4.07995605]
[1747666355131,4.07896413,2451.7,2450.8,0.55]
[1747666355326,12.50187418,2451.7,2451.2,4.07953407]
[1747666355522,4.07813726,2452.1,2451.6,4.07881285]
[1747666355736,4.07806639,2452.2,2451.7,4.07877727]
[1747666356029,21.04570738,2452.4,2451.9,4.07846975]
[1747666356462,4.07630849,2453.2,2451.7,0.40787773]
[1747666356760,4.07757486,2452.5,2452.0,4.07829711]
[1747666357137,8.47,2452.6,2452.2,4.07793434]
[1747666357344,12.54736643,2452.6,2452.1,4.07809225]
[1747666357751,12.54733177,2452.6,2452.2,4.07795217]
[1747666357948,8.493,2452.8,2452.1,8.8469699]
[1747666358147,8.493,2452.8,2452.3,8.0]
[1747666358471,8.493,2452.8,2452.5,4.0773602]
[1747666358878,8.493,2452.8,2452.4,4.88996039]
[1747666359041,9.2683,2452.8,2452.1,1.6593699]
[1747666359243,12.57005862,2452.8,2452.3,4.07777424]
[1747666359467,8.493,2452.8,2452.4,4.07763359]
[1747666359775,8.493,2452.8,2452.3,4.0777271]
[1747666359955,8.493,2452.8,2452.1,0.8124]
[1747666360292,4.0771685,2452.7,2452.2,4.0778695]
[1747666360446,4.07732689,2452.6,2452.1,0.8124]
[1747666360640,4.07728748,2452.7,2452.1,0.8124]
[1747666360859,4.07745645,2452.6,2452.1,4.8905267]
[1747666361649,12.57003107,2452.8,2452.3,4.07770853]
[1747666361857,12.57003107,2452.8,2452.1,0.8124]